[Event "*** Titled Tuesday Blitz"]
[Site "Chess.com"]
[Date "2020.05.12"]
[Round "6"]
[White "Batsai"]
[Black "Malysch"]
[Result "0-1"]
[WhiteElo "2270"]
[BlackElo "2435"]
[TimeControl "180+1"]
[EndTime "11:05:21 PDT"]
[Termination "Malysch won on time"]

1. e4 {[%clk 0:03:00.9]} 1... d5 {[%clk 0:02:59.9]} 2. e5 {[%clk 0:02:58.1]}
2... c5 {[%clk 0:02:59.4]} 3. c3 {[%clk 0:02:55.1]} 3... Nc6 {[%clk 0:02:59.1]}
4. d4 {[%clk 0:02:54.1]} 4... h5 {[%clk 0:02:58.2]} 5. h4 {[%clk 0:02:53.4]}
5... Bf5 {[%clk 0:02:54.5]} 6. Ne2 {[%clk 0:02:37.7]} 6... e6 {[%clk 0:02:52.5]}
7. Ng3 {[%clk 0:02:36.9]} 7... Bg6 {[%clk 0:02:46.1]} 8. Bb5 {[%clk 0:02:35.8]}
8... Qb6 {[%clk 0:02:45.1]} 9. Qa4 {[%clk 0:02:34.8]} 9... Rc8 {[%clk
0:02:31.2]} 10. Be3 {[%clk 0:02:22.6]} 10... Nh6 {[%clk 0:02:24.3]} 11. Nd2
{[%clk 0:01:47.6]} 11... Ng4 {[%clk 0:02:16.3]} 12. Nb3 {[%clk 0:01:46.3]} 12...
a6 {[%clk 0:02:09.1]} 13. Bxc6+ {[%clk 0:01:43.1]} 13... Qxc6 {[%clk 0:02:10]}
14. Qxc6+ {[%clk 0:01:41.6]} 14... Rxc6 {[%clk 0:02:10.5]} 15. dxc5 {[%clk
0:01:19.8]} 15... Nxe5 {[%clk 0:01:55.6]} 16. O-O {[%clk 0:00:58.2]} 16... Nc4
{[%clk 0:01:54.5]} 17. Rae1 {[%clk 0:00:47.4]} 17... Nxb2 {[%clk 0:01:46.8]} 18.
f4 {[%clk 0:00:43.6]} 18... Nd3 {[%clk 0:01:32.5]} 19. Re2 {[%clk 0:00:41.9]}
19... Nxc5 {[%clk 0:01:28.4]} 20. f5 {[%clk 0:00:38.7]} 20... Bh7 {[%clk
0:01:20.6]} 21. Nd4 {[%clk 0:00:21.9]} 21... Rc8 {[%clk 0:01:02.6]} 22. Bg5
{[%clk 0:00:10.9]} 22... Bd6 {[%clk 0:00:49.4]} 23. fxe6 {[%clk 0:00:07]} 23...
Bxg3 {[%clk 0:00:47.9]} 24. exf7+ {[%clk 0:00:05.2]} 24... Kd7 {[%clk
0:00:47.2]} 25. Re7+ {[%clk 0:00:02.3]} 25... Kd6 {[%clk 0:00:47.3]} 0-1

[Event "*** Titled Tuesday Blitz"]
[Site "Chess.com"]
[Date "2020.05.12"]
[Round "6"]
[White "mirceaparligras"]
[Black "JozefKneht"]
[Result "1-0"]
[WhiteElo "2577"]
[BlackElo "2368"]
[TimeControl "180+1"]
[EndTime "11:05:24 PDT"]
[Termination "mirceaparligras won by resignation"]

1. d4 {[%clk 0:03:00.9]} 1... d5 {[%clk 0:02:58.9]} 2. c4 {[%clk 0:02:59.1]}
2... e6 {[%clk 0:02:59.4]} 3. Nf3 {[%clk 0:02:58.9]} 3... Nf6 {[%clk 0:02:59.8]}
4. Nc3 {[%clk 0:02:57.7]} 4... Be7 {[%clk 0:03:00.2]} 5. Bf4 {[%clk 0:02:56.4]}
5... O-O {[%clk 0:02:59.6]} 6. e3 {[%clk 0:02:56.9]} 6... c5 {[%clk 0:03:00.1]}
7. dxc5 {[%clk 0:02:54.9]} 7... Nc6 {[%clk 0:03:00.5]} 8. cxd5 {[%clk
0:02:52.2]} 8... exd5 {[%clk 0:03:01.4]} 9. Be2 {[%clk 0:02:47.6]} 9... Bxc5
{[%clk 0:03:01.9]} 10. O-O {[%clk 0:02:47.8]} 10... Be6 {[%clk 0:03:02.5]} 11.
Rc1 {[%clk 0:02:47.3]} 11... Rc8 {[%clk 0:03:03]} 12. a3 {[%clk 0:02:44.7]}
12... h6 {[%clk 0:03:02.9]} 13. Na4 {[%clk 0:02:38.1]} 13... Be7 {[%clk
0:03:00.9]} 14. Nc5 {[%clk 0:02:35.7]} 14... Qb6 {[%clk 0:03:00.1]} 15. b4
{[%clk 0:02:24.5]} 15... a5 {[%clk 0:02:54.8]} 16. Na4 {[%clk 0:01:54.2]} 16...
Qd8 {[%clk 0:02:49.7]} 17. b5 {[%clk 0:01:54]} 17... Nb8 {[%clk 0:02:48.7]} 18.
Rxc8 {[%clk 0:01:41.6]} 18... Qxc8 {[%clk 0:02:48.1]} 19. Qa1 {[%clk 0:01:42.1]}
19... Qc2 {[%clk 0:02:31.6]} 20. Nc3 {[%clk 0:01:31.7]} 20... Nbd7 {[%clk
0:02:00]} 21. Nd4 {[%clk 0:01:28.8]} 21... Qg6 {[%clk 0:01:56.2]} 22. Rc1 {[%clk
0:01:21.4]} 22... Nc5 {[%clk 0:01:49.5]} 23. b6 {[%clk 0:01:14]} 23... Bh3
{[%clk 0:01:32.1]} 24. Bg3 {[%clk 0:01:10.2]} 24... Bd7 {[%clk 0:01:20]} 25. Qb2
{[%clk 0:01:04.5]} 25... h5 {[%clk 0:01:05]} 26. Qa2 {[%clk 0:00:54.9]} 26...
Be6 {[%clk 0:01:03.9]} 27. Ncb5 {[%clk 0:00:48.1]} 27... Nfe4 {[%clk 0:00:56.5]}
28. Nc7 {[%clk 0:00:43.7]} 28... h4 {[%clk 0:00:55.6]} 29. Bf4 {[%clk
0:00:43.4]} 29... Bh3 {[%clk 0:00:51.5]} 30. Bf1 {[%clk 0:00:34.2]} 30... Bxg2
{[%clk 0:00:50]} 31. Bxg2 {[%clk 0:00:33.6]} 31... h3 {[%clk 0:00:50.2]} 32. Bg3
{[%clk 0:00:32.6]} 32... hxg2 {[%clk 0:00:50]} 33. Nxd5 {[%clk 0:00:31.7]} 33...
Bd8 {[%clk 0:00:46.8]} 34. Kxg2 {[%clk 0:00:28.3]} 34... Bxb6 {[%clk 0:00:44.7]}
35. Ne7+ {[%clk 0:00:26.3]} 1-0

[Event "*** Titled Tuesday Blitz"]
[Site "Chess.com"]
[Date "2020.05.12"]
[Round "6"]
[White "Ceejay271"]
[Black "Slovak_fighter2000"]
[Result "1-0"]
[WhiteElo "2374"]
[BlackElo "2527"]
[TimeControl "180+1"]
[EndTime "11:05:24 PDT"]
[Termination "Ceejay271 won by resignation"]

1. d4 {[%clk 0:03:00.9]} 1... Nf6 {[%clk 0:02:55.7]} 2. c4 {[%clk 0:03:00.3]}
2... g6 {[%clk 0:02:52.4]} 3. Nc3 {[%clk 0:02:59.4]} 3... Bg7 {[%clk 0:02:52.6]}
4. e4 {[%clk 0:02:58.6]} 4... d6 {[%clk 0:02:53.2]} 5. Nf3 {[%clk 0:02:58]} 5...
O-O {[%clk 0:02:53.7]} 6. Be2 {[%clk 0:02:58.4]} 6... Bg4 {[%clk 0:02:54.1]} 7.
Be3 {[%clk 0:02:56.8]} 7... Nfd7 {[%clk 0:02:53.6]} 8. d5 {[%clk 0:02:55.7]}
8... c6 {[%clk 0:02:48.9]} 9. O-O {[%clk 0:02:54.1]} 9... cxd5 {[%clk
0:02:41.1]} 10. cxd5 {[%clk 0:02:53.2]} 10... Bxf3 {[%clk 0:02:37]} 11. Bxf3
{[%clk 0:02:52.3]} 11... Na6 {[%clk 0:02:37.6]} 12. Rc1 {[%clk 0:02:49.8]} 12...
Qa5 {[%clk 0:02:29.5]} 13. a3 {[%clk 0:02:45.3]} 13... Rfc8 {[%clk 0:02:15.6]}
14. Be2 {[%clk 0:02:33.2]} 14... Bxc3 {[%clk 0:01:56.6]} 15. Rxc3 {[%clk
0:02:29.9]} 15... Rxc3 {[%clk 0:01:57.5]} 16. Bd2 {[%clk 0:02:27.1]} 16... Rac8
{[%clk 0:01:31]} 17. Bxc3 {[%clk 0:02:25.9]} 17... Qb6 {[%clk 0:01:27.4]} 18.
Bg4 {[%clk 0:02:16.2]} 18... Rd8 {[%clk 0:01:20.3]} 19. b4 {[%clk 0:01:53.4]}
19... Nf6 {[%clk 0:01:15.2]} 20. Bf3 {[%clk 0:01:40.5]} 20... Qb5 {[%clk
0:01:11.1]} 21. Be2 {[%clk 0:01:33.8]} 21... Qd7 {[%clk 0:01:07.9]} 22. Qd4
{[%clk 0:01:31.8]} 22... Rc8 {[%clk 0:00:57]} 23. Bb2 {[%clk 0:01:24.2]} 23...
Qa4 {[%clk 0:00:37.7]} 24. g4 {[%clk 0:01:16.8]} 24... g5 {[%clk 0:00:14]} 25.
f4 {[%clk 0:01:13.5]} 25... gxf4 {[%clk 0:00:11.5]} 26. g5 {[%clk 0:01:12]}
26... Qc2 {[%clk 0:00:07.7]} 27. Bd3 {[%clk 0:01:05.3]} 27... Qd2 {[%clk
0:00:06.6]} 28. gxf6 {[%clk 0:01:01.3]} 28... e5 {[%clk 0:00:05.1]} 29. dxe6
{[%clk 0:00:59.3]} 29... fxe6 {[%clk 0:00:04.9]} 30. e5 {[%clk 0:00:56.3]} 30...
dxe5 {[%clk 0:00:04.1]} 31. Bxh7+ {[%clk 0:00:55.4]} 31... Kf7 {[%clk
0:00:02.5]} 32. Qxd2 {[%clk 0:00:55.3]} 32... Kxf6 {[%clk 0:00:02.8]} 1-0

[Event "*** Titled Tuesday Blitz"]
[Site "Chess.com"]
[Date "2020.05.12"]
[Round "6"]
[White "LawrenceTrent"]
[Black "Enriquack"]
[Result "1-0"]
[WhiteElo "2535"]
[BlackElo "2281"]
[TimeControl "180+1"]
[EndTime "11:05:26 PDT"]
[Termination "LawrenceTrent won by resignation"]

1. d4 {[%clk 0:02:51.5]} 1... Nf6 {[%clk 0:02:53.1]} 2. Nc3 {[%clk 0:02:52.4]}
2... d5 {[%clk 0:02:50.1]} 3. Bf4 {[%clk 0:02:52.7]} 3... g6 {[%clk 0:02:50.2]}
4. e3 {[%clk 0:02:52]} 4... Bg7 {[%clk 0:02:50.6]} 5. h4 {[%clk 0:02:52.4]} 5...
h5 {[%clk 0:02:49.8]} 6. Nf3 {[%clk 0:02:52.5]} 6... O-O {[%clk 0:02:49.9]} 7.
Be2 {[%clk 0:02:49.4]} 7... c5 {[%clk 0:02:48.3]} 8. Ne5 {[%clk 0:02:45.6]} 8...
Nc6 {[%clk 0:02:43.8]} 9. Qd2 {[%clk 0:02:42.6]} 9... Qa5 {[%clk 0:02:31.3]} 10.
a3 {[%clk 0:02:35.5]} 10... Bf5 {[%clk 0:02:16.5]} 11. O-O {[%clk 0:02:24.1]}
11... Rac8 {[%clk 0:02:14.5]} 12. Rfd1 {[%clk 0:02:16.3]} 12... Rfd8 {[%clk
0:02:12.8]} 13. Nxc6 {[%clk 0:02:13.2]} 13... bxc6 {[%clk 0:02:07.6]} 14. b4
{[%clk 0:02:07.5]} 14... cxb4 {[%clk 0:02:05.2]} 15. axb4 {[%clk 0:02:06.2]}
15... Qb6 {[%clk 0:01:51.9]} 16. Na4 {[%clk 0:02:03.9]} 16... Qb7 {[%clk
0:01:49.2]} 17. f3 {[%clk 0:02:00.1]} 17... Nd7 {[%clk 0:01:47.7]} 18. Nc5
{[%clk 0:01:55.2]} 18... Nxc5 {[%clk 0:01:46.7]} 19. bxc5 {[%clk 0:01:55.3]}
19... Qb2 {[%clk 0:01:40.3]} 20. Rdb1 {[%clk 0:01:44.3]} 20... Qxc2 {[%clk
0:01:39.4]} 21. Qxc2 {[%clk 0:01:44.4]} 21... Bxc2 {[%clk 0:01:40.3]} 22. Rb7
{[%clk 0:01:45]} 22... Bf6 {[%clk 0:01:04.7]} 23. Bg5 {[%clk 0:01:41.2]} 23...
Ra8 {[%clk 0:00:32.4]} 24. Raxa7 {[%clk 0:01:38.4]} 24... Rxa7 {[%clk
0:00:32.3]} 25. Rxa7 {[%clk 0:01:39.3]} 25... Rb8 {[%clk 0:00:32.8]} 26. Rc7
{[%clk 0:01:34.6]} 26... Ba4 {[%clk 0:00:31.5]} 27. Ba6 {[%clk 0:01:26.6]} 27...
Rb1+ {[%clk 0:00:29.5]} 28. Kh2 {[%clk 0:01:26.5]} 28... Bxg5 {[%clk 0:00:23.7]}
29. hxg5 {[%clk 0:01:24.9]} 29... Bb5 {[%clk 0:00:19.7]} 30. Rb7 {[%clk
0:01:16.3]} 30... Rb2 {[%clk 0:00:19]} 31. Bxb5 {[%clk 0:01:15.7]} 31... cxb5
{[%clk 0:00:18.7]} 32. Rxe7 {[%clk 0:01:09.8]} 32... Re2 {[%clk 0:00:14.5]} 33.
c6 {[%clk 0:01:07.9]} 33... Rc2 {[%clk 0:00:13.7]} 34. c7 {[%clk 0:01:07.7]}
34... Kg7 {[%clk 0:00:13.6]} 35. Rd7 {[%clk 0:01:07.6]} 35... b4 {[%clk
0:00:13.9]} 36. Rxd5 {[%clk 0:01:07.5]} 36... Rxc7 {[%clk 0:00:14.2]} 37. Rb5
{[%clk 0:01:08.1]} 37... Rc3 {[%clk 0:00:13.8]} 38. e4 {[%clk 0:01:07.7]} 38...
b3 {[%clk 0:00:14.2]} 39. d5 {[%clk 0:01:08]} 39... Rd3 {[%clk 0:00:14.7]} 40.
Kg3 {[%clk 0:01:08.1]} 40... f6 {[%clk 0:00:14.6]} 41. Rb7+ {[%clk 0:01:07.8]}
1-0

[Event "*** Titled Tuesday Blitz"]
[Site "Chess.com"]
[Date "2020.05.12"]
[Round "6"]
[White "aa175"]
[Black "Funkmaus"]
[Result "1-0"]
[WhiteElo "2400"]
[BlackElo "2220"]
[TimeControl "180+1"]
[EndTime "11:05:29 PDT"]
[Termination "aa175 won on time"]

1. d4 {[%clk 0:03:00.9]} 1... c6 {[%clk 0:03:00.9]} 2. Bf4 {[%clk 0:02:57.1]}
2... d5 {[%clk 0:03:01.8]} 3. e3 {[%clk 0:02:57.1]} 3... Nf6 {[%clk 0:03:01.6]}
4. Nf3 {[%clk 0:02:56.5]} 4... Bf5 {[%clk 0:03:01.3]} 5. Nbd2 {[%clk 0:02:55.5]}
5... e6 {[%clk 0:03:01.6]} 6. c3 {[%clk 0:02:55.9]} 6... Nbd7 {[%clk 0:03:01.5]}
7. Qb3 {[%clk 0:02:44.8]} 7... Qb6 {[%clk 0:02:58.8]} 8. h3 {[%clk 0:02:39.9]}
8... h6 {[%clk 0:02:57.4]} 9. Nh4 {[%clk 0:02:36.9]} 9... Bh7 {[%clk 0:02:54.1]}
10. Bh2 {[%clk 0:02:33.1]} 10... Be7 {[%clk 0:02:49.1]} 11. Nhf3 {[%clk
0:02:32.1]} 11... O-O {[%clk 0:02:47.8]} 12. Ne5 {[%clk 0:02:32.3]} 12... Nxe5
{[%clk 0:02:40.7]} 13. Bxe5 {[%clk 0:02:33.2]} 13... Nd7 {[%clk 0:02:33.7]} 14.
Bg3 {[%clk 0:02:26.2]} 14... Bf6 {[%clk 0:02:29.9]} 15. Be2 {[%clk 0:02:23.5]}
15... e5 {[%clk 0:02:25.6]} 16. O-O {[%clk 0:02:21.5]} 16... Rfe8 {[%clk
0:02:20.4]} 17. Rfe1 {[%clk 0:02:16]} 17... Rad8 {[%clk 0:02:02.5]} 18. a4
{[%clk 0:02:09.4]} 18... Qxb3 {[%clk 0:01:51.1]} 19. Nxb3 {[%clk 0:02:08.5]}
19... exd4 {[%clk 0:01:43.4]} 20. cxd4 {[%clk 0:02:09.4]} 20... Nb8 {[%clk
0:01:18.1]} 21. a5 {[%clk 0:02:01.4]} 21... Be7 {[%clk 0:01:03.2]} 22. Nc5
{[%clk 0:01:55.7]} 22... Bxc5 {[%clk 0:00:58.7]} 23. dxc5 {[%clk 0:01:56.6]}
23... Nd7 {[%clk 0:00:55]} 24. Bd6 {[%clk 0:01:52.9]} 24... Ne5 {[%clk
0:00:46.5]} 25. a6 {[%clk 0:01:44.3]} 25... b5 {[%clk 0:00:41.9]} 26. b4 {[%clk
0:01:36.6]} 26... Nd3 {[%clk 0:00:24.9]} 27. Reb1 {[%clk 0:01:36.3]} 27... Ne5
{[%clk 0:00:15.6]} 28. Rd1 {[%clk 0:01:23.3]} 28... Bg6 {[%clk 0:00:12.8]} 29.
Rd4 {[%clk 0:01:20.1]} 29... Nc4 {[%clk 0:00:12.5]} 30. Bc7 {[%clk 0:01:16.5]}
30... Rd7 {[%clk 0:00:10.8]} 31. Bg3 {[%clk 0:01:17]} 31... Re4 {[%clk
0:00:07.5]} 32. Rad1 {[%clk 0:01:13.5]} 32... Rxd4 {[%clk 0:00:07]} 33. Rxd4
{[%clk 0:01:14.4]} 33... Kf8 {[%clk 0:00:05.2]} 34. Bg4 {[%clk 0:01:14.4]} 34...
Rd8 {[%clk 0:00:04.7]} 35. Bf3 {[%clk 0:01:15.3]} 35... Rd7 {[%clk 0:00:04.4]}
36. h4 {[%clk 0:01:14.3]} 36... h5 {[%clk 0:00:03.9]} 37. Bf4 {[%clk 0:01:13]}
37... Ke7 {[%clk 0:00:03.6]} 38. g4 {[%clk 0:01:10.2]} 38... hxg4 {[%clk
0:00:01.4]} 39. Bxg4 {[%clk 0:01:11.1]} 39... Be4 {[%clk 0:00:01.2]} 40. Bxd7
{[%clk 0:01:08.4]} 1-0

[Event "*** Titled Tuesday Blitz"]
[Site "Chess.com"]
[Date "2020.05.12"]
[Round "6"]
[White "Mizner"]
[Black "Sashadav97"]
[Result "1-0"]
[WhiteElo "2519"]
[BlackElo "2744"]
[TimeControl "180+1"]
[EndTime "11:05:31 PDT"]
[Termination "Mizner won on time"]

1. d4 {[%clk 0:03:00.9]} 1... d5 {[%clk 0:02:59.7]} 2. c4 {[%clk 0:03:00.6]}
2... e6 {[%clk 0:02:59.6]} 3. Nc3 {[%clk 0:02:57.3]} 3... Nf6 {[%clk 0:02:58]}
4. cxd5 {[%clk 0:02:57.3]} 4... exd5 {[%clk 0:02:58.4]} 5. Bg5 {[%clk
0:02:57.4]} 5... Bb4 {[%clk 0:02:55.6]} 6. Qc2 {[%clk 0:02:52.5]} 6... h6 {[%clk
0:02:54.2]} 7. Bh4 {[%clk 0:02:51.6]} 7... O-O {[%clk 0:02:43.2]} 8. e3 {[%clk
0:02:47.1]} 8... Be6 {[%clk 0:02:41.9]} 9. Bd3 {[%clk 0:02:43.4]} 9... c5 {[%clk
0:02:41.3]} 10. dxc5 {[%clk 0:02:44.3]} 10... Nbd7 {[%clk 0:02:41.3]} 11. a3
{[%clk 0:02:35.2]} 11... Bxc5 {[%clk 0:02:30.7]} 12. Nge2 {[%clk 0:02:34.8]}
12... Rc8 {[%clk 0:02:29.4]} 13. O-O {[%clk 0:02:26.6]} 13... Ne5 {[%clk
0:02:28.8]} 14. Rad1 {[%clk 0:01:54.3]} 14... Be7 {[%clk 0:02:08.3]} 15. Nf4
{[%clk 0:01:39.4]} 15... Qb6 {[%clk 0:01:50.8]} 16. Bxf6 {[%clk 0:01:10.7]}
16... Bxf6 {[%clk 0:01:51.7]} 17. Bf5 {[%clk 0:01:10.4]} 17... Rfd8 {[%clk
0:01:30.5]} 18. Nfxd5 {[%clk 0:01:00.1]} 18... Rxd5 {[%clk 0:01:00.9]} 19. Rxd5
{[%clk 0:00:48.9]} 19... Bxf5 {[%clk 0:00:05.8]} 20. Qxf5 {[%clk 0:00:47.4]}
20... Re8 {[%clk 0:00:06.1]} 21. Ne4 {[%clk 0:00:39.7]} 21... Qxb2 {[%clk
0:00:01.1]} 22. Nxf6+ {[%clk 0:00:38.1]} 22... gxf6 {[%clk 0:00:02]} 23. Qxf6
{[%clk 0:00:37.8]} 23... Kh7 {[%clk 0:00:01.7]} 24. Qf5+ {[%clk 0:00:31.6]} 1-0

[Event "*** Titled Tuesday Blitz"]
[Site "Chess.com"]
[Date "2020.05.12"]
[Round "6"]
[White "TheoSlade"]
[Black "NotFischer"]
[Result "0-1"]
[WhiteElo "2260"]
[BlackElo "2119"]
[TimeControl "180+1"]
[EndTime "11:05:33 PDT"]
[Termination "NotFischer won by checkmate"]

1. d4 {[%clk 0:03:00.9]} 1... g6 {[%clk 0:03:00.9]} 2. c4 {[%clk 0:03:01]} 2...
Bg7 {[%clk 0:03:00.9]} 3. e4 {[%clk 0:03:01.6]} 3... d6 {[%clk 0:03:00.8]} 4.
Nc3 {[%clk 0:03:02.1]} 4... Nc6 {[%clk 0:03:00.8]} 5. Be3 {[%clk 0:03:00.8]}
5... e5 {[%clk 0:02:59.7]} 6. Nf3 {[%clk 0:02:39.1]} 6... Bg4 {[%clk 0:02:57.7]}
7. d5 {[%clk 0:02:39.1]} 7... Nd4 {[%clk 0:02:32.7]} 8. Bxd4 {[%clk 0:02:25.8]}
8... exd4 {[%clk 0:02:33.6]} 9. Nb5 {[%clk 0:02:26.3]} 9... c5 {[%clk
0:02:03.9]} 10. dxc6 {[%clk 0:02:17.1]} 10... bxc6 {[%clk 0:02:03.3]} 11. Nbxd4
{[%clk 0:02:12.2]} 11... Qb6 {[%clk 0:02:02.5]} 12. Nb3 {[%clk 0:01:51.3]} 12...
Bxb2 {[%clk 0:01:56.5]} 13. Rb1 {[%clk 0:01:37.4]} 13... Bc3+ {[%clk 0:01:55.3]}
14. Nbd2 {[%clk 0:01:37.4]} 14... Qa5 {[%clk 0:01:09.5]} 15. Qc2 {[%clk
0:01:37.1]} 15... Bxf3 {[%clk 0:01:01.5]} 16. gxf3 {[%clk 0:01:36.7]} 16... Nf6
{[%clk 0:00:46.9]} 17. Rc1 {[%clk 0:01:26.8]} 17... Be5 {[%clk 0:00:41.6]} 18.
Bd3 {[%clk 0:01:20.4]} 18... Nh5 {[%clk 0:00:37.8]} 19. O-O {[%clk 0:01:18.5]}
19... Qd8 {[%clk 0:00:36.3]} 20. Rfd1 {[%clk 0:00:57.6]} 20... Qh4 {[%clk
0:00:34.8]} 21. Nf1 {[%clk 0:00:55.9]} 21... Nf4 {[%clk 0:00:33.6]} 22. Ng3
{[%clk 0:00:45.1]} 22... Nh3+ {[%clk 0:00:29.4]} 23. Kh1 {[%clk 0:00:40.7]}
23... O-O {[%clk 0:00:17.4]} 24. Bf1 {[%clk 0:00:40.1]} 24... Rab8 {[%clk
0:00:15.2]} 25. Bxh3 {[%clk 0:00:37.5]} 25... Qxh3 {[%clk 0:00:15.5]} 26. c5
{[%clk 0:00:33.2]} 26... Rb2 {[%clk 0:00:14.4]} 27. Qd3 {[%clk 0:00:21.2]} 27...
Rxf2 {[%clk 0:00:12.4]} 28. Rg1 {[%clk 0:00:21.7]} 28... Qxh2# {[%clk
0:00:12.1]} 0-1

[Event "*** Titled Tuesday Blitz"]
[Site "Chess.com"]
[Date "2020.05.12"]
[Round "6"]
[White "karinachess1"]
[Black "BabyFacedAssasin"]
[Result "1-0"]
[WhiteElo "2447"]
[BlackElo "2257"]
[TimeControl "180+1"]
[EndTime "11:05:34 PDT"]
[Termination "karinachess1 won by checkmate"]

1. e4 {[%clk 0:03:00.9]} 1... e6 {[%clk 0:02:59.9]} 2. d4 {[%clk 0:03:00.5]}
2... d5 {[%clk 0:03:00.2]} 3. Nc3 {[%clk 0:03:00.5]} 3... Bb4 {[%clk 0:02:59]}
4. e5 {[%clk 0:03:00.4]} 4... c5 {[%clk 0:02:58.9]} 5. a3 {[%clk 0:03:00.7]}
5... Bxc3+ {[%clk 0:02:59.2]} 6. bxc3 {[%clk 0:03:01.6]} 6... Qa5 {[%clk
0:02:59.3]} 7. Bd2 {[%clk 0:02:55.7]} 7... Qa4 {[%clk 0:02:57.7]} 8. dxc5 {[%clk
0:02:38.1]} 8... Nc6 {[%clk 0:02:54]} 9. Nf3 {[%clk 0:02:36.3]} 9... Nge7 {[%clk
0:02:47.7]} 10. Bd3 {[%clk 0:02:36.2]} 10... Ng6 {[%clk 0:02:36.2]} 11. Qe2
{[%clk 0:02:34.6]} 11... Nf4 {[%clk 0:02:22]} 12. Bxf4 {[%clk 0:02:31.3]} 12...
Qxf4 {[%clk 0:02:22.9]} 13. c4 {[%clk 0:02:22.4]} 13... Nd4 {[%clk 0:02:03.7]}
14. Nxd4 {[%clk 0:02:07]} 14... Qxd4 {[%clk 0:02:04.6]} 15. O-O {[%clk
0:02:07.6]} 15... Qxc5 {[%clk 0:01:58]} 16. cxd5 {[%clk 0:02:07.3]} 16... Qxd5
{[%clk 0:01:57.3]} 17. Rfd1 {[%clk 0:01:40.1]} 17... Qc5 {[%clk 0:01:15.4]} 18.
Bb5+ {[%clk 0:01:29.6]} 18... Ke7 {[%clk 0:01:14.6]} 19. Rd2 {[%clk 0:01:23.1]}
19... a6 {[%clk 0:01:09.8]} 20. Ba4 {[%clk 0:00:55]} 20... b5 {[%clk 0:01:08.4]}
21. Qe4 {[%clk 0:00:47.4]} 21... Bd7 {[%clk 0:00:25.3]} 22. Rad1 {[%clk
0:00:37.2]} 22... Rhd8 {[%clk 0:00:19.9]} 23. Qh4+ {[%clk 0:00:35.3]} 23... f6
{[%clk 0:00:17.3]} 24. exf6+ {[%clk 0:00:35]} 24... gxf6 {[%clk 0:00:15.5]} 25.
Qxh7+ {[%clk 0:00:35.6]} 25... Ke8 {[%clk 0:00:15.2]} 26. Rxd7 {[%clk
0:00:35.3]} 26... Rxd7 {[%clk 0:00:11.2]} 27. Rxd7 {[%clk 0:00:29.4]} 27... bxa4
{[%clk 0:00:07]} 28. Qf7# {[%clk 0:00:28.5]} 1-0

[Event "*** Titled Tuesday Blitz"]
[Site "Chess.com"]
[Date "2020.05.12"]
[Round "6"]
[White "HunterBRR"]
[Black "politeplayer"]
[Result "0-1"]
[WhiteElo "2018"]
[BlackElo "2190"]
[TimeControl "180+1"]
[EndTime "11:05:36 PDT"]
[Termination "politeplayer won on time"]

1. d4 {[%clk 0:03:00.9]} 1... Nf6 {[%clk 0:02:59.1]} 2. c4 {[%clk 0:03:01]} 2...
c5 {[%clk 0:02:54.3]} 3. d5 {[%clk 0:02:59.5]} 3... e6 {[%clk 0:02:54]} 4. Nc3
{[%clk 0:02:53.5]} 4... exd5 {[%clk 0:02:53.8]} 5. cxd5 {[%clk 0:02:54.4]} 5...
d6 {[%clk 0:02:54.3]} 6. Nf3 {[%clk 0:02:54.2]} 6... g6 {[%clk 0:02:53.8]} 7.
Bf4 {[%clk 0:02:53.2]} 7... Bg7 {[%clk 0:02:49.6]} 8. Qa4+ {[%clk 0:02:52.6]}
8... Bd7 {[%clk 0:02:49.9]} 9. Qb3 {[%clk 0:02:52.2]} 9... b5 {[%clk 0:02:50.4]}
10. Bxd6 {[%clk 0:02:51.5]} 10... Qb6 {[%clk 0:02:48.5]} 11. Be5 {[%clk
0:02:49.1]} 11... O-O {[%clk 0:02:44]} 12. e3 {[%clk 0:02:36.5]} 12... c4 {[%clk
0:02:42.6]} 13. Qd1 {[%clk 0:02:31.8]} 13... b4 {[%clk 0:02:42.3]} 14. Nb1
{[%clk 0:02:19]} 14... Bb5 {[%clk 0:02:41.8]} 15. Be2 {[%clk 0:02:14.5]} 15...
Nbd7 {[%clk 0:02:19.9]} 16. Bd4 {[%clk 0:02:12.3]} 16... Qa6 {[%clk 0:02:20.3]}
17. O-O {[%clk 0:02:10.2]} 17... Rfc8 {[%clk 0:02:14]} 18. a4 {[%clk 0:01:27.5]}
18... Nb6 {[%clk 0:01:52.4]} 19. Nc3 {[%clk 0:00:29.3]} 19... Bd7 {[%clk
0:01:39.4]} 20. Nb5 {[%clk 0:00:24.9]} 20... Bxb5 {[%clk 0:01:38.4]} 21. axb5
{[%clk 0:00:25.8]} 21... Qxb5 {[%clk 0:01:38.9]} 22. b3 {[%clk 0:00:21.9]} 22...
Qxd5 {[%clk 0:01:33.1]} 23. bxc4 {[%clk 0:00:17.9]} 23... Nxc4 {[%clk
0:01:30.1]} 24. Rc1 {[%clk 0:00:13.3]} 24... Nb6 {[%clk 0:01:19.6]} 25. Bxb6
{[%clk 0:00:10.3]} 25... axb6 {[%clk 0:01:14.8]} 26. Rxc8+ {[%clk 0:00:06.5]}
26... Rxc8 {[%clk 0:01:13.7]} 27. Qb1 {[%clk 0:00:06.6]} 27... Ne4 {[%clk
0:01:10.3]} 28. Rd1 {[%clk 0:00:06.6]} 28... Qe6 {[%clk 0:00:54.5]} 29. Qa2
{[%clk 0:00:02]} 29... Nc3 {[%clk 0:00:52.4]} 30. Qxe6 {[%clk 0:00:01.5]} 30...
Nxe2+ {[%clk 0:00:51.4]} 31. Kf1 {[%clk 0:00:01.8]} 31... fxe6 {[%clk
0:00:51.6]} 32. Kxe2 {[%clk 0:00:02]} 32... b3 {[%clk 0:00:50.9]} 0-1